Cogmind - Beta 15 @@@ ROGUE MODE // 2025.07.28 @ 00:30:05 Player: Nat Result: Destroyed by Y-45 Defender with Heavy Assault Rifle Performance ------------- Evolutions (1) 500 Regions Visited (3) 600 Robots Destroyed (17) 85 Value Destroyed (585) 585 Prototype IDs (4) 80 Alien Tech Used (0) 0 Bonus (200) 200 TOTAL SCORE: 2050 Bonus ------- Pacifist 200 Cogmind --------- Core Integrity 0/400 Matter 195/300 Energy 250/250 System Corruption 3% Temperature Cool (0) Movement Core (1450) Ox28 Location -9/Storage Parts ------- > --- POWER (1) -------- Ion Engine > --- PROPULSION (4) --- (None) > --- UTILITY (2) ------ Huge Storage Unit > --- WEAPON (2) ------- (None) > --- INVENTORY (25) --- Ion Engine Deuterium Engine Small Storage Unit Terrain Scan Processor EM Pulse Gun Plasma Cutter Peak State ------------ > --- POWER ------------ Ion Engine > --- PROPULSION ------- Carbon-fiber Leg Carbon-fiber Leg Carbon-fiber Leg Carbon-fiber Leg > --- UTILITY ---------- Small Storage Unit Light Armor Plating > --- WEAPON ----------- Flak Cannon Flak Cannon > --- INVENTORY -------- Ion Engine Deuterium Engine Terrain Scan Processor EM Pulse Gun Medium Laser Light Cannon Plasma Cutter [Rating: 22] Favorites ----------- Power Ion Engine Engine Ion Engine Propulsion Carbon-fiber Leg Leg Carbon-fiber Leg Utility Small Storage Unit Device Trap Scanner Storage Small Storage Unit Protection Light Armor Plating Weapon Flak Cannon Energy Gun EM Pulse Gun Ballistic Cannon Flak Cannon Build | -11 -10 -9 -9 ------- Run | Yrd Mat Mat Sto Slots Evolved 2 | . . 2 . Power . | . . . . Propulsion 2 | . . 2 . Utility . | . . . . Weapon . | . . . . Parts Attached 21 | 6 1 13 1 Power 3 | 1 . 2 . Engine 3 | 1 . 2 . Core . | . . . . Reactor . | . . . . Propulsion 7 | 2 . 5 . Treads . | . . . . Leg 7 | 2 . 5 . Wheel . | . . . . Hover . | . . . . Flight . | . . . . Utility 4 | 1 1 1 1 Device 1 | . . 1 . Storage 2 | 1 . . 1 Processor . | . . . . Hackware . | . . . . Protection 1 | . 1 . . Artifact . | . . . . Weapon 7 | 2 . 5 . Energy Gun 4 | 2 . 2 . Energy Cannon . | . . . . Ballistic Gun . | . . . . Ballistic Cannon 3 | . . 3 . Launcher . | . . . . Special Weapon . | . . . . Impact Weapon . | . . . . Slashing Weapon . | . . . . Piercing Weapon . | . . . . Special Melee Weapon . | . . . . Unidentified Prototypes . | . . . . Parts Lost 13 | . . 6 7 Power 2 | . . 1 1 Propulsion 7 | . . 3 4 Utility 2 | . . 1 1 Weapon 2 | . . 1 1 Highest Loss Streak 5 | . . 4 5 To Critical Strikes . | . . . . Average Backups 5 | 1 2 6 6 Power 2 | . 1 2 2 Propulsion . | . . . . Utility 1 | . . 1 1 Weapon 1 | . 1 2 1 Tool/Special . | . . . . Unused Backups 4 | . . . 4 Power 2 | . . . 2 Propulsion . | . . . . Utility 1 | . . . 1 Weapon . | . . . . Tool/Special 1 | . . . 1 Average Slot Usage (%) 86 | . 98 79 89 Engine 10 | . 14 10 9 Leg 33 | . 28 26 42 Device 2 | . . 6 . Storage 11 | . 14 11 11 Protection 7 | . 12 4 8 Energy Gun 11 | . 28 17 . Ballistic Cannon 8 | . . 3 17 Peak Build Rating 22 | 6 7 22 22 Average Rating 13 | 4 6 11 19 On Entrance 8 | . 6 7 22 Naked Turns . | . . . . Heaviest Build 100 | 14 17 25 100 Greatest Support 60 | 20 20 60 60 Greatest Overweight (x) 28 | . . 5 28 Average Overweight (x) . | . . . 1 Largest Inventory Capacity 25 | 8 8 8 25 Average Capacity 14 | 7 8 8 24 Most Carried 8 | 3 4 8 8 Average Carried 5 | 1 2 6 6 Final Capacity 25 | 8 8 8 25 Final Carried 7 | 2 3 7 6 Class Distribution -------------------- 100% | Mutant Dominant Class ---------------- Mutant | -10/Materials Mutant | -9/Materials Mutant | -9/Storage Resources | -11 -10 -9 -9 ----------- Run | Yrd Mat Mat Sto Matter Collected 535 | 173 . 270 92 Remotely . | . . . . Salvage Created 597 | . . 495 102 Parts 32 | . . 21 11 Haulers Intercepted . | . . . . Recyclers Shooed . | . . . . Parts Field Recycled . | . . . . Retrieved Matter . | . . . . Parts Self-Destructed . | . . . . Prevented . | . . . . Kills | -11 -10 -9 -9 ------- Run | Yrd Mat Mat Sto Combat Hostiles Destroyed 14 | . . 10 4 Guns 6 | . . 6 . Cannons 8 | . . 4 4 Classes Destroyed 5 | . . 4 1 Recycler 1 | . . 1 . Watcher 2 | . . 1 1 Grunt 10 | . . 8 2 Brawler 1 | . . . 1 Sentry 3 | . . 2 1 Best Kill Streak 5 | . . 5 4 Combat Bots Only 5 | . . 5 3 Max Kills in Single Turn 1 | . . 1 1 Gunslinging . | . . . . Exploded . | . . . . Melee . | . . . . Uniques/NPCs Destroyed . | . . . . Combat | -11 -10 -9 -9 -------- Run | Yrd Mat Mat Sto Hostile Shots Fired 228 | . . 110 118 Missed 69 | . . 34 35 Hits 159 | . . 76 83 Melee 5 | . . 5 . Projectile 154 | . . 71 83 Critical Strikes 3 | . . 1 2 Damage Taken 2008 | . . 968 1040 Core 410 | . . 157 253 Absorbed by Shields . | . . . . Regen/Repaired (Parts) 113 | . . . 113 Core Remaining (%) 100 | 100 100 . . Volleys Fired 66 | . 3 50 13 Largest 2 | . 2 2 2 Hottest 106 | . 80 106 74 Shots Fired 122 | . 6 90 26 Gun 69 | . 6 63 . Cannon 53 | . . 27 26 Launcher . | . . . . Special . | . . . . Kinetic 53 | . . 27 26 Thermal 61 | . . 61 . Explosive . | . . . . Electromagnetic 8 | . 6 2 . Robot Hit Streak 9 | . 2 9 7 Robot Miss Streak 10 | . 2 5 10 Penetration Max . | . . . . Secondary Targets 1 | . . 1 . Max Gunslinging Chain 1 | . . 1 . Shots Hit Robots 85 | . 4 60 21 Core Hits 42 | . . 24 18 Critical Kills . | . . . . Critical Parts Destroyed . | . . . . Critical Strikes 4 | . . 4 . Burn 4 | . . 4 . Melee Attacks . | . . . . Impact . | . . . . Slashing . | . . . . Piercing . | . . . . Sneak Attacks . | . . . . Combat Hostiles . | . . . . Follow-up Attacks . | . . . . Damage Inflicted 1276 | . 48 862 366 Guns 609 | . 48 561 . Cannons 597 | . . 293 304 Explosions . | . . . . Melee . | . . . . Ramming 70 | . . 8 62 Kinetic 597 | . . 293 304 Thermal 538 | . . 538 . Explosive . | . . . . Electromagnetic 71 | . 48 23 . Impact . | . . . . Slashing . | . . . . Piercing . | . . . . Highest Corruption 3 | . . 2 3 Average Corruption 2 | . . 2 2 Corruption Purged . | . . . . Corruption Blocked . | . . . . Effects 8 | . . 4 4 Message Errors 2 | . . . 2 Matter Fused 1 | . . 1 . Heat Flow Errors 1 | . . . 1 Energy Discharges 1 | . . . 1 Parts Fused 1 | . . 1 . Weapon Failures 2 | . . 2 . Overload Shots . | . . . . Overflow Damage . | . . . . Projectiles . | . . . . Explosions . | . . . . Melee . | . . . . Knockbacks 8 | . . 3 5 Impact 1 | . . 1 . Kinetic 7 | . . 2 5 Secondary . | . . . . Self-Inflicted Damage . | . . . . Shots . | . . . . Rammed . | . . . . Targets Rammed 16 | . . 6 10 Kicked 16 | . . 6 10 Crushed . | . . . . Highest Temperature 461 | . 54 461 177 Average Temperature 134 | . 25 171 30 Received Heat Transfer 888 | . . 414 474 Effects 9 | . . 9 . Shutdowns 2 | . . 2 . Energy Bleed 3 | . . 3 . Damage (major) 4 | . . 4 . Siege Activations . | . . . . Martial Activations . | . . . . Shielding Activations . | . . . . Robots Disrupted . | . . . . Combat Hostiles . | . . . . Robots Corrupted . | . . . . Combat Hostiles . | . . . . Parts Fried . | . . . . Impact Corruptions . | . . . . Robots Melted . | . . . . Combat Hostiles . | . . . . Parts Melted 1 | . . 1 . Heat Transferred 1813 | . . 1813 . Parts Sabotaged . | . . . . Parts Stolen . | . . . . Parts Stripped . | . . . . Power Chain Reactions . | . . . . Alert | -11 -10 -9 -9 ------- Run | Yrd Mat Mat Sto Maximum Alert Level . | . . . . Low Security (%) 100 | 100 100 100 100 Level 1 . | . . . . Level 2 . | . . . . Level 3 . | . . . . Level 4 . | . . . . Level 5 . | . . . . High Security . | . . . . Max Security . | . . . . Peak Influence 120 | . 30 120 60 Initial 40 | . . 8 40 Average 26 | . 3 47 15 Influence Increases 478 | . 44 315 119 Destroy 0b10 Robot/C 280 | . . 200 80 Destroy 0b10 Robot/NC 15 | . . 10 5 Destroy Leader 74 | . . 52 22 Successful Hack 30 | . 14 4 12 Disable Machine 15 | . 15 . . Destroy Structure 4 | . . 4 . Lose Combat Pursuer 60 | . 15 45 . Influence Decreases 478 | . 24 239 215 Entered New Map 68 | . . 12 56 Time Decay 355 | . 24 182 149 Lost Part 55 | . . 45 10 Squads Dispatched 3 | . . 1 2 Investigation . | . . . . Extermination . | . . . . Reinforcement 3 | . . 1 2 Assault . | . . . . Garrison . | . . . . Intercept . | . . . . Searches Triggered . | . . . . Construction Impeded . | . . . . Haulers Reinforced . | . . . . Active Scanning Responses . | . . . . Cargo Convoy Interrupts . | . . . . Stealth | -11 -10 -9 -9 --------- Run | Yrd Mat Mat Sto Distress Signals 4 | . 1 3 . Communications Jammed . | . . . . Distress Signals . | . . . . Times Spotted 34 | . 2 18 14 Peak Tracking Total 10 | . 3 9 10 Tactical Retreats 4 | . 1 3 . Traps | -11 -10 -9 -9 ------- Run | Yrd Mat Mat Sto Traps Triggered 2 | . . . 2 Indirectly . | . . . . Trap Hack Attempts . | . . . . Triggered . | . . . . Disarmed . | . . . . Reprogrammed . | . . . . Reused . | . . . . Traps Extracted . | . . . . Installed . | . . . . Triggered . | . . . . Machines | -11 -10 -9 -9 ---------- Run | Yrd Mat Mat Sto Machines Disabled 1 | . 1 . . Max in Single Turn 1 | . 1 . . Machines Repaired . | . . . . Machines Dismantled . | . . . . Machines Sabotaged . | . . . . Overloaded Fab Kills . | . . . . Hacking | -11 -10 -9 -9 --------- Run | Yrd Mat Mat Sto Machines Accessed 9 | . 3 2 4 Terminals 7 | . 3 2 2 Fabricators . | . . . . Repair Stations 1 | . . . 1 Recycling Units 1 | . . . 1 Scanalyzers . | . . . . Garrison Access . | . . . . Total Hacks 22 | . 7 4 11 Successful 14 | . 4 2 8 Failed 8 | . 3 2 3 Catastrophic 1 | . 1 . . Database Lockouts . | . . . . Manual . | . . . . Terminals 15 | . 7 4 4 Fabricators . | . . . . Repair Stations 3 | . . . 3 Recycling Units 4 | . . . 4 Scanalyzers . | . . . . Garrison Access . | . . . . Terminal Hacks 9 | . 4 2 3 Record 2 | . 1 1 . Robot Analysis 1 | . 1 . . Prototype ID Bank 2 | . 1 . 1 Open Door 1 | . . . 1 Emergency Access Points 1 | . 1 . . Locate Traps 1 | . . 1 . Surveillance Status 1 | . . . 1 Fabricator Hacks . | . . . . Repair Station Hacks 2 | . . . 2 Scan Component 1 | . . . 1 Repair 1 | . . . 1 Recycling Unit Hacks 3 | . . . 3 Recycle Component 1 | . . . 1 Process 2 | . . . 2 Scanalyzer . | . . . . Garrison Access Hacks . | . . . . Unauthorized Hacks . | . . . . Terminals . | . . . . Fabricators . | . . . . Repair Stations . | . . . . Recycling Units . | . . . . Scanalyzers . | . . . . Garrison Access . | . . . . Data Cores Recovered . | . . . . Used . | . . . . Hacking Detections 9 | . 3 2 4 Full Trace Events 1 | . . . 1 Feedback Events . | . . . . Feedback Blocked . | . . . . Robot Schematics Acquired . | . . . . Robots Built . | . . . . Authchips . | . . . . Time . | . . . . Total Robot Build Rating . | . . . . Part Schematics Acquired . | . . . . Parts Built . | . . . . Authchips . | . . . . Time . | . . . . Total Part Build Rating . | . . . . Parts Repaired 1 | . . . 1 Time 26 | . . . 26 Parts Recycled 1 | . . . 1 Recycled Matter 17 | . . . 17 Retrieved Matter . | . . . . Retrieved Components . | . . . . Parts Scanalyzed . | . . . . Part Schematics Acquired . | . . . . Parts Damaged . | . . . . Bothacking | -11 -10 -9 -9 ------------ Run | Yrd Mat Mat Sto Used RIF Installer . | . . . . Robots Hacked . | . . . . Non-combat . | . . . . Combat . | . . . . Robot Hacks Applied . | . . . . Relay Couplers Released . | . . . . Fabnet Peak Effective % . | . . . . Robots Rewired . | . . . . Allies Hacked . | . . . . Hacks Repelled . | . . . . Allies | -11 -10 -9 -9 -------- Run | Yrd Mat Mat Sto Total Allies . | . . . . Largest Group . | . . . . Highest-Rated Group . | . . . . Highest-Rated Ally . | . . . . Total Orders . | . . . . Ally Attacks . | . . . . Total Damage . | . . . . Kills . | . . . . Allies Corrupted . | . . . . Allies Melted . | . . . . Intel | -11 -10 -9 -9 ------- Run | Yrd Mat Mat Sto Active Infowar (turns) 284 | . . 284 . Traps 284 | . . 284 . Robot Analysis Total 1 | . 1 . . Derelict Logs Recovered . | . . . . Drone Launches . | . . . . Drone Recoveries . | . . . . Exploration | -11 -10 -9 -9 ------------- Run | Yrd Mat Mat Sto Turns Passed 1121 | 70 147 467 437 Spaces Moved 562 | 51 113 203 195 Core 13 | 6 . 6 1 Treads . | . . . . Legs 549 | 45 113 197 194 Wheels . | . . . . Hover . | . . . . Flight . | . . . . Fastest Speed 50 | 50 120 120 120 Average Speed 152 | 111 120 137 196 Slowest Speed 1450 | 120 120 300 1450 Overloaded Moves . | . . . . Propulsion Burnouts . | . . . . Robots Hopped . | . . . . Potential Cave-ins . | . . . . Cave-ins Triggered . | . . . . Exploration Rate (%) 23 | 4 25 26 38 Regions Visited 3 Branch Regions 1 Pre-discovered Areas . | . . . . Known Exits Taken . | . . . . Unknown Exits Taken 3 | 1 1 1 . Scrap Searched . | . . . . Spaces Dug . | . . . . Terrain Destroyed . | . . . . Melee . | . . . . Projectile . | . . . . AOE . | . . . . Terrain Rammed . | . . . . Walls Destroyed . | . . . . Machines Disabled . | . . . . Actions | -11 -10 -9 -9 --------- Run | Yrd Mat Mat Sto Total 701 | 64 118 294 225 Wait 9 | . . 9 . Move 559 | 50 112 202 195 Hop . | . . . . Pick Up 25 | 8 2 12 3 Fast Attach 1 | . . 1 . Attach 16 | 6 1 7 2 Detach . | . . . . Swap 8 | . . 6 2 Drop 1 | . . 1 . Fire 66 | . 3 50 13 Melee . | . . . . Ram . | . . . . Kick 16 | . . 6 10 Crush . | . . . . Escape Stasis . | . . . . Rewire . | . . . . Trap . | . . . . Miscellaneous . | . . . . Route ------- -11/Scrapyard -10/Materials (discovered 2 exits: *Mat / [*Min]) -9/Materials (discovered 2 exits: [*Min] / *Sto) -9/Storage History --------- Turn | Location | Event 2 | -11/Scrapyard | Met Revision 17 5 | -11/Scrapyard | Discovered new exit (range 16) 71 | -11/Scrapyard | Entered Materials 96 | -10/Materials | Discovered new exit (range 12) 183 | -10/Materials | Discovered new exit (range 11) 218 | -10/Materials | Entered another Materials area 218 | -9/Materials | Evolved 2 slots: Propulsion x2 312 | -9/Materials | Build established: Mutant 523 | -9/Materials | Discovered new exit (range 11) 580 | -9/Materials | Lost 4 parts (1p1n1u1w) 680 | -9/Materials | Discovered new exit (range 16) 685 | -9/Materials | Entered Storage 758 | -9/Storage | Repaired Lgt. Cannon? 1028 | -9/Storage | Core integrity fell below 50% 1095 | -9/Storage | Core integrity fell below 20% 1122 | -9/Storage | Destroyed by Y-45 Defender with Heavy Assault Rifle Last Messages --------------- TERMINAL." O-16 Technician uses terminal to summon reinforcements. ALERT: Hostiles spotted, dispatching reinforcements to Terminal S012. O-16 Technician locks terminal. Kicked A-02 Transporter out of the way. System corrupted: Heat flow error (+200). Kicked Y-45 Defender out of the way. Critical hit (Burn: +37). Kicked Y-45 Defender out of the way. Kicked Y-45 Defender. Kicked Y-45 Defender out of the way. Kicked Y-45 Defender. Kicked Y-45 Defender out of the way. K-01 Serf cleans the Compression Vault. Carbon-fiber Leg destroyed. Critical hit (Burn: +37). Flak Cannon destroyed. Carbon-fiber Leg destroyed. Map ----- +----------------------------------------------------+ | ????????????????????????????????????????? | | ????????????????????????????????????????? | | ????????????????????????????????????????? | | ????????????????????????????????????????? | | ????????????????????????????????????????? | | ????????????????????????????????????????? | | ????????##??????????????????????????????? | | ??????? ??????????????????????????????? | | ??????? ??????????????????##???????????? | | ###### ???????????######## ####???#????? | | %# ????????#??? # #?? #????? | | /???????? #??? # """g""" #? #????? | | #??????? #??? !# """g""" # #????? | | #??????" ???? # """ """ / #????? | | ^ ^^ #????? ??"?" # g # ??????? | | ^#?#+##+#???# T # Y #????????? | | #?# #???# " # #????????? | | #?# #???? # #????????? | | ### #######+#####;######????????? | | * k #?????????????? | | % #?????????????? | | = #?????????????? | | #?????????????? | | #?????????????? | | ######## # # | | #########+#####@ + # | | #?????# ## #????? | | ####+####+#?????# ## #????? | | ????????????????# + #????? | | ????????????????# #############????? | | ????????????????# #????????????????? | | ????????????????# #????????????????? | | ????????????????########????????????????? | | | | | | | | | | | | | | | | | | | | | | | | | | | | | | | | | | | +----------------------------------------------------+ Best States ------------- Heat Dissipation 28 Energy Generation 14 Energy Capacity 275 Matter Stores 300 Matter Capacity 300 Sight Range 16 Terrain Scan Density 10 Armor Coverage 150 Evasion (%) 55 Item Schematics ----------------- None Robot Schematics ------------------ None Fabricated ------------ Nothing Repaired ---------- Lgt. Cannon | 5% | -9/Storage Alien Tech Used ----------------- None Achievements -------------- More Dakka Please Challenges ------------ None Game ------ Seed CommHellfireShockpuncher Manual? 0 Play Time 00:20:23 Cumulative 3.3 hours Start 2025.07.28 @ 00:10:49 End 2025.07.28 @ 00:30:05 Sessions 1 Manual Loads 0 Difficulty Rogue Special Mode None Game No. 8 Rogue 8 Adventurer 0 Explorer 0 Win Type - Total 0 Types 0/0/0/0/0/0/0/0/0/0 Lore% 5 Gallery% 6 Achievement% 7 Wizard Run 0 Options --------- Layout 1 ASCII 0 Keyboard 0 Movement Mouse Keybinds 0 Fullscreen 1 Font 24/Smallcaps Map View 25x20 Zoom Use 2% Tactical HUD 0 Map Filters NONE Filters NONE Steam 1 RUN: b1858ddd-d0ee-439e-ad42-775ad947d7a2